[Event "*** Titled Tuesday Blitz"]
[Site "Chess.com"]
[Date "2019.01.01"]
[Round "6"]
[White "TwentyHourADay"]
[Black "Gubajdullin"]
[Result "1-0"]
[WhiteElo "2268"]
[BlackElo "2399"]
[TimeControl "180+2"]
[EndTime "14:21:53 PST"]
[Termination "TwentyHourADay won by checkmate"]

1. e4 {[%clk 0:03:01.1]} 1... c6 {[%clk 0:02:57.9]} 2. d4 {[%clk 0:03:00.2]}
2... d5 {[%clk 0:02:58.8]} 3. e5 {[%clk 0:03:01.8]} 3... Bf5 {[%clk 0:02:58.6]}
4. h4 {[%clk 0:03:02.8]} 4... e6 {[%clk 0:02:59.6]} 5. g4 {[%clk 0:03:02.9]}
5... Be4 {[%clk 0:02:59.3]} 6. f3 {[%clk 0:03:04.1]} 6... Be7 {[%clk 0:02:58.8]}
7. fxe4 {[%clk 0:03:01.2]} 7... Bxh4+ {[%clk 0:02:59.2]} 8. Ke2 {[%clk
0:03:02.7]} 8... dxe4 {[%clk 0:03:00.1]} 9. Nc3 {[%clk 0:03:02.5]} 9... Nh6
{[%clk 0:02:50.1]} 10. Nxe4 {[%clk 0:02:54.9]} 10... Nxg4 {[%clk 0:02:50.6]} 11.
Nf3 {[%clk 0:02:54.7]} 11... Be7 {[%clk 0:02:48.9]} 12. Bh3 {[%clk 0:02:41]}
12... Qd5 {[%clk 0:02:36.8]} 13. Qd3 {[%clk 0:02:35.8]} 13... f5 {[%clk
0:02:35.6]} 14. exf6 {[%clk 0:02:22.4]} 14... Nxf6 {[%clk 0:02:36.3]} 15. Nc3
{[%clk 0:02:20.3]} 15... Qh5 {[%clk 0:02:31.8]} 16. Bg5 {[%clk 0:02:12.9]} 16...
Nbd7 {[%clk 0:02:18.8]} 17. Bxe6 {[%clk 0:02:13]} 17... Qg6 {[%clk 0:02:10.6]}
18. Qxg6+ {[%clk 0:02:12.1]} 18... hxg6 {[%clk 0:02:11.7]} 19. Rxh8+ {[%clk
0:02:14]} 19... Nf8 {[%clk 0:02:12.7]} 20. Ne5 {[%clk 0:02:12.8]} 20... Kd8
{[%clk 0:02:12]} 21. Nxg6 {[%clk 0:02:12.3]} 21... Bd6 {[%clk 0:02:11]} 22. Nxf8
{[%clk 0:02:12.4]} 22... Kc7 {[%clk 0:02:10.1]} 23. Bxf6 {[%clk 0:02:12.6]}
23... gxf6 {[%clk 0:02:07.4]} 24. Ng6 {[%clk 0:02:13.6]} 24... Rxh8 {[%clk
0:02:04.8]} 25. Nxh8 {[%clk 0:02:14.7]} 25... f5 {[%clk 0:02:05.5]} 26. Nf7
{[%clk 0:02:14.7]} 26... Be7 {[%clk 0:02:03.2]} 27. Bxf5 {[%clk 0:02:15.1]}
27... Bf6 {[%clk 0:02:04.4]} 28. Ne5 {[%clk 0:02:15.7]} 28... Bg5 {[%clk
0:02:05.2]} 29. Rg1 {[%clk 0:02:16]} 29... Bf6 {[%clk 0:02:05.3]} 30. Rg6 {[%clk
0:02:17]} 30... Bh4 {[%clk 0:02:04.8]} 31. Kd3 {[%clk 0:02:17.1]} 31... c5
{[%clk 0:02:05.1]} 32. Nb5+ {[%clk 0:02:17.4]} 32... Kd8 {[%clk 0:02:04.4]} 33.
Nd6 {[%clk 0:02:15.6]} 33... cxd4 {[%clk 0:02:04.5]} 34. Rg7 {[%clk 0:02:16.2]}
34... b5 {[%clk 0:02:04.1]} 35. Rd7# {[%clk 0:02:17.1]} 1-0

[Event "*** Titled Tuesday Blitz"]
[Site "Chess.com"]
[Date "2019.01.01"]
[Round "6"]
[White "JoakimVonAnd"]
[Black "patrisiii123"]
[Result "1-0"]
[WhiteElo "2342"]
[BlackElo "2254"]
[TimeControl "180+2"]
[EndTime "14:22:01 PST"]
[Termination "JoakimVonAnd won by resignation"]

1. d4 {[%clk 0:03:01.9]} 1... d5 {[%clk 0:03:01.1]} 2. c4 {[%clk 0:03:02.2]}
2... e6 {[%clk 0:03:02.5]} 3. Nc3 {[%clk 0:03:02.3]} 3... c6 {[%clk 0:03:03.9]}
4. e4 {[%clk 0:03:02.7]} 4... dxe4 {[%clk 0:03:01.3]} 5. Nxe4 {[%clk 0:03:04.3]}
5... Nf6 {[%clk 0:03:03.2]} 6. Nxf6+ {[%clk 0:03:02.3]} 6... Qxf6 {[%clk
0:03:03.8]} 7. Nf3 {[%clk 0:03:03.5]} 7... h6 {[%clk 0:03:03.1]} 8. Bd3 {[%clk
0:03:02.1]} 8... Nd7 {[%clk 0:03:04.3]} 9. O-O {[%clk 0:03:01.7]} 9... Be7
{[%clk 0:03:05.6]} 10. b3 {[%clk 0:02:59.7]} 10... O-O {[%clk 0:03:02.1]} 11.
Bb2 {[%clk 0:03:00.8]} 11... Qf4 {[%clk 0:03:03.2]} 12. Qe2 {[%clk 0:02:57.7]}
12... Bf6 {[%clk 0:03:01.6]} 13. g3 {[%clk 0:02:58.1]} 13... Qc7 {[%clk
0:03:01.6]} 14. h4 {[%clk 0:02:58.8]} 14... b6 {[%clk 0:03:01.2]} 15. Qe4 {[%clk
0:02:53.1]} 15... g6 {[%clk 0:02:57.7]} 16. h5 {[%clk 0:02:51.2]} 16... Bg7
{[%clk 0:02:25.5]} 17. hxg6 {[%clk 0:02:50.2]} 17... Nf6 {[%clk 0:02:25.8]} 18.
gxf7+ {[%clk 0:02:45.1]} 18... Qxf7 {[%clk 0:02:27.7]} 19. Qh4 {[%clk
0:02:34.5]} 19... Bb7 {[%clk 0:02:10.7]} 20. Ne5 {[%clk 0:02:34]} 20... Qc7
{[%clk 0:02:11.8]} 21. Rae1 {[%clk 0:02:24.7]} 21... Rad8 {[%clk 0:02:12.5]} 22.
Ng6 {[%clk 0:02:08.6]} 22... Rfe8 {[%clk 0:02:12.6]} 23. Nf4 {[%clk 0:02:09.7]}
23... Qd6 {[%clk 0:02:07.2]} 24. Bb1 {[%clk 0:01:58.3]} 24... c5 {[%clk
0:02:07.1]} 25. dxc5 {[%clk 0:01:55.7]} 25... bxc5 {[%clk 0:02:06.4]} 26. Bxf6
{[%clk 0:01:48.7]} 26... Bxf6 {[%clk 0:02:00.4]} 27. Qxf6 {[%clk 0:01:44.4]}
27... Qc6 {[%clk 0:02:02.3]} 1-0

[Event "*** Titled Tuesday Blitz"]
[Site "Chess.com"]
[Date "2019.01.01"]
[Round "6"]
[White "dmosesov"]
[Black "PenguinPacks"]
[Result "1-0"]
[WhiteElo "2363"]
[BlackElo "2227"]
[TimeControl "180+2"]
[EndTime "14:22:26 PST"]
[Termination "dmosesov won by resignation"]

1. e4 {[%clk 0:02:59.5]} 1... e5 {[%clk 0:02:59.5]} 2. Nf3 {[%clk 0:03:00.2]}
2... Nc6 {[%clk 0:03:01]} 3. Bb5 {[%clk 0:03:00.8]} 3... a6 {[%clk 0:03:02.4]}
4. Ba4 {[%clk 0:03:02]} 4... Nf6 {[%clk 0:03:03.6]} 5. O-O {[%clk 0:03:03.3]}
5... b5 {[%clk 0:03:04.5]} 6. Bb3 {[%clk 0:03:04.3]} 6... Bc5 {[%clk 0:03:05.8]}
7. a4 {[%clk 0:02:56.9]} 7... Bb7 {[%clk 0:03:04.2]} 8. c3 {[%clk 0:02:54.8]}
8... d6 {[%clk 0:03:04.4]} 9. d4 {[%clk 0:02:50.1]} 9... Bb6 {[%clk 0:03:05.6]}
10. axb5 {[%clk 0:02:42.1]} 10... axb5 {[%clk 0:03:05.7]} 11. Rxa8 {[%clk
0:02:41.9]} 11... Bxa8 {[%clk 0:03:03.3]} 12. Na3 {[%clk 0:02:40]} 12... O-O
{[%clk 0:03:03.6]} 13. Re1 {[%clk 0:02:32.3]} 13... exd4 {[%clk 0:02:35.3]} 14.
cxd4 {[%clk 0:02:33.4]} 14... b4 {[%clk 0:02:36.5]} 15. Nc4 {[%clk 0:02:30.3]}
15... Ba7 {[%clk 0:02:37.7]} 16. Bg5 {[%clk 0:02:23.3]} 16... h6 {[%clk
0:02:35.9]} 17. Bh4 {[%clk 0:02:24.1]} 17... g5 {[%clk 0:02:37.1]} 18. Bg3
{[%clk 0:02:19.3]} 18... d5 {[%clk 0:02:29.5]} 19. exd5 {[%clk 0:02:10.9]} 19...
Nxd5 {[%clk 0:02:31.4]} 20. Nce5 {[%clk 0:02:10.4]} 20... Nde7 {[%clk
0:02:31.6]} 21. Nxg5 {[%clk 0:01:44.8]} 21... hxg5 {[%clk 0:02:05.7]} 22. Qh5
{[%clk 0:01:45]} 22... Nxe5 {[%clk 0:01:57.7]} 23. Bxe5 {[%clk 0:01:43]} 1-0

[Event "*** Titled Tuesday Blitz"]
[Site "Chess.com"]
[Date "2019.01.01"]
[Round "6"]
[White "nihalsarin"]
[Black "snowlord"]
[Result "1-0"]
[WhiteElo "2954"]
[BlackElo "2691"]
[TimeControl "180+2"]
[EndTime "14:23:09 PST"]
[Termination "nihalsarin won by resignation"]

1. d4 {[%clk 0:03:01.9]} 1... Nf6 {[%clk 0:03:00.8]} 2. Bg5 {[%clk 0:03:03.2]}
2... d5 {[%clk 0:02:58.9]} 3. e3 {[%clk 0:03:03.9]} 3... c5 {[%clk 0:02:59.8]}
4. Bxf6 {[%clk 0:03:04.3]} 4... exf6 {[%clk 0:03:01.7]} 5. c3 {[%clk 0:03:02.4]}
5... Nc6 {[%clk 0:03:02.7]} 6. Nf3 {[%clk 0:03:03]} 6... Be6 {[%clk 0:03:02.5]}
7. dxc5 {[%clk 0:03:04]} 7... Bxc5 {[%clk 0:03:03]} 8. Nbd2 {[%clk 0:03:05.6]}
8... O-O {[%clk 0:03:04.1]} 9. Be2 {[%clk 0:03:07]} 9... Bd6 {[%clk 0:03:05.2]}
10. O-O {[%clk 0:03:08.6]} 10... a6 {[%clk 0:03:03.8]} 11. Nb3 {[%clk
0:03:10.1]} 11... Ne5 {[%clk 0:03:05]} 12. Nbd4 {[%clk 0:03:10.5]} 12... Bd7
{[%clk 0:03:06.2]} 13. Qb3 {[%clk 0:03:11.8]} 13... Qc7 {[%clk 0:03:04.5]} 14.
Qxd5 {[%clk 0:03:08.4]} 14... Rad8 {[%clk 0:03:05]} 15. Qb3 {[%clk 0:03:08.5]}
15... Nxf3+ {[%clk 0:02:52.8]} 16. Nxf3 {[%clk 0:03:10.4]} 16... Bc6 {[%clk
0:02:54]} 17. h3 {[%clk 0:03:09.5]} 17... Bd5 {[%clk 0:02:54.2]} 18. Qc2 {[%clk
0:03:09.9]} 18... Rfe8 {[%clk 0:02:55.4]} 19. Rfd1 {[%clk 0:03:10.4]} 19... Be4
{[%clk 0:02:56.4]} 20. Qb3 {[%clk 0:03:12]} 20... Qc5 {[%clk 0:02:51.2]} 21. Rd4
{[%clk 0:03:07.2]} 21... Bb8 {[%clk 0:02:31.8]} 22. Rad1 {[%clk 0:03:00.8]}
22... Rxd4 {[%clk 0:02:32.8]} 23. Rxd4 {[%clk 0:03:01.1]} 23... Qc7 {[%clk
0:02:19.1]} 24. Kf1 {[%clk 0:02:59.5]} 24... Ba7 {[%clk 0:02:12.9]} 25. Rd1
{[%clk 0:03:00.1]} 25... h5 {[%clk 0:01:59.7]} 26. Kg1 {[%clk 0:02:59.3]} 26...
Bb8 {[%clk 0:01:58.3]} 27. Kf1 {[%clk 0:02:46.6]} 27... Rd8 {[%clk 0:01:50.9]}
28. Rxd8+ {[%clk 0:02:43.3]} 28... Qxd8 {[%clk 0:01:51.9]} 29. Bc4 {[%clk
0:02:37.6]} 29... Qd7 {[%clk 0:01:45.4]} 30. Nd4 {[%clk 0:02:29.8]} 30... Qc7
{[%clk 0:01:32.6]} 31. Bd5 {[%clk 0:02:26.9]} 31... Bd3+ {[%clk 0:01:26.4]} 32.
Ke1 {[%clk 0:02:28]} 32... b5 {[%clk 0:01:26.9]} 33. Nc6 {[%clk 0:02:25]} 33...
Bc4 {[%clk 0:01:13.1]} 34. Bxc4 {[%clk 0:02:23.2]} 34... Qxc6 {[%clk 0:01:13.8]}
35. Bxf7+ {[%clk 0:02:24.4]} 35... Kh8 {[%clk 0:01:12.7]} 36. Qd1 {[%clk
0:02:24.1]} 1-0

[Event "*** Titled Tuesday Blitz"]
[Site "Chess.com"]
[Date "2019.01.01"]
[Round "6"]
[White "Parhamov"]
[Black "1e41-0"]
[Result "1-0"]
[WhiteElo "2889"]
[BlackElo "2547"]
[TimeControl "180+2"]
[EndTime "14:23:28 PST"]
[Termination "Parhamov won by resignation"]

1. e4 {[%clk 0:03:01.9]} 1... e6 {[%clk 0:03:00.8]} 2. d4 {[%clk 0:03:02.9]}
2... d5 {[%clk 0:03:02.2]} 3. Nc3 {[%clk 0:03:03.2]} 3... Bb4 {[%clk 0:03:02.6]}
4. e5 {[%clk 0:03:03]} 4... b6 {[%clk 0:03:03]} 5. Qg4 {[%clk 0:02:50.2]} 5...
Bf8 {[%clk 0:03:03.2]} 6. Nf3 {[%clk 0:02:47.6]} 6... Qd7 {[%clk 0:03:02.8]} 7.
h4 {[%clk 0:02:42.4]} 7... Ba6 {[%clk 0:03:01.9]} 8. Bxa6 {[%clk 0:02:41.9]}
8... Nxa6 {[%clk 0:03:03.8]} 9. a3 {[%clk 0:02:43.3]} 9... Ne7 {[%clk
0:02:58.3]} 10. h5 {[%clk 0:02:43.4]} 10... h6 {[%clk 0:02:59.1]} 11. O-O {[%clk
0:02:40.7]} 11... Nf5 {[%clk 0:02:58]} 12. Ne2 {[%clk 0:02:41.9]} 12... c5
{[%clk 0:02:54.2]} 13. c3 {[%clk 0:02:42.7]} 13... Nb8 {[%clk 0:02:38.8]} 14.
Qf4 {[%clk 0:02:39]} 14... Nc6 {[%clk 0:02:38.3]} 15. g4 {[%clk 0:02:40.1]}
15... Nfe7 {[%clk 0:02:37.7]} 16. b4 {[%clk 0:02:40.7]} 16... g5 {[%clk
0:01:47.3]} 17. Qg3 {[%clk 0:02:38.8]} 17... Bg7 {[%clk 0:01:41.3]} 18. Nh2
{[%clk 0:02:38.3]} 18... cxd4 {[%clk 0:01:17.7]} 19. cxd4 {[%clk 0:02:39.2]}
19... f6 {[%clk 0:01:19.2]} 20. b5 {[%clk 0:02:36.1]} 20... Nxd4 {[%clk
0:01:08.1]} 21. Nxd4 {[%clk 0:02:31]} 21... fxe5 {[%clk 0:01:09.5]} 22. Nc6
{[%clk 0:02:32.5]} 22... Nxc6 {[%clk 0:00:51.1]} 23. bxc6 {[%clk 0:02:33.5]}
23... Qc7 {[%clk 0:00:47.5]} 24. Bb2 {[%clk 0:02:34]} 24... O-O {[%clk
0:00:49.1]} 25. Rae1 {[%clk 0:02:21.7]} 25... Rf4 {[%clk 0:00:50.1]} 26. Nf3
{[%clk 0:02:22.1]} 26... d4 {[%clk 0:00:50.1]} 27. Bc1 {[%clk 0:02:15.1]} 27...
Re8 {[%clk 0:00:39.2]} 28. Bxf4 {[%clk 0:02:14.7]} 28... exf4 {[%clk 0:00:41.1]}
29. Qg2 {[%clk 0:02:15.8]} 29... e5 {[%clk 0:00:42.7]} 30. Nd2 {[%clk
0:02:16.3]} 30... e4 {[%clk 0:00:38.3]} 31. Rxe4 {[%clk 0:02:16.7]} 31... Qxc6
{[%clk 0:00:39.9]} 32. Rxe8+ {[%clk 0:02:17.4]} 32... Qxe8 {[%clk 0:00:41.8]}
33. Qd5+ {[%clk 0:02:18.7]} 33... Kh8 {[%clk 0:00:43.5]} 34. Nf3 {[%clk
0:02:18.8]} 34... Qc8 {[%clk 0:00:42.9]} 35. Qf5 {[%clk 0:02:18.3]} 35... Qc6
{[%clk 0:00:43.8]} 36. Re1 {[%clk 0:02:19.6]} 1-0

[Event "*** Titled Tuesday Blitz"]
[Site "Chess.com"]
[Date "2019.01.01"]
[Round "6"]
[White "PlotnikovPavel"]
[Black "Keaton87"]
[Result "1-0"]
[WhiteElo "2382"]
[BlackElo "2507"]
[TimeControl "180+2"]
[EndTime "14:23:29 PST"]
[Termination "PlotnikovPavel won by checkmate"]

1. d4 {[%clk 0:03:00.9]} 1... d5 {[%clk 0:02:58.7]} 2. Nf3 {[%clk 0:03:02.2]}
2... Nf6 {[%clk 0:02:59.2]} 3. c4 {[%clk 0:03:03.1]} 3... e6 {[%clk 0:02:59.8]}
4. Nc3 {[%clk 0:03:04.5]} 4... Nbd7 {[%clk 0:02:56]} 5. e3 {[%clk 0:03:03.8]}
5... Be7 {[%clk 0:02:54.1]} 6. Bd3 {[%clk 0:03:03.5]} 6... O-O {[%clk
0:02:55.2]} 7. O-O {[%clk 0:03:04]} 7... c5 {[%clk 0:02:56.2]} 8. cxd5 {[%clk
0:03:00.4]} 8... Nxd5 {[%clk 0:02:55.8]} 9. Nxd5 {[%clk 0:03:00.7]} 9... exd5
{[%clk 0:02:56.5]} 10. b3 {[%clk 0:02:58.9]} 10... b6 {[%clk 0:02:51.2]} 11. Bb2
{[%clk 0:02:59.2]} 11... Nf6 {[%clk 0:02:48.3]} 12. Ne5 {[%clk 0:02:53.2]} 12...
Bb7 {[%clk 0:02:43.2]} 13. Rc1 {[%clk 0:02:52.7]} 13... g6 {[%clk 0:02:37.7]}
14. Qf3 {[%clk 0:02:45]} 14... Nd7 {[%clk 0:02:34.9]} 15. Ng4 {[%clk 0:02:29.9]}
15... h5 {[%clk 0:02:10.4]} 16. Nh6+ {[%clk 0:02:18.1]} 16... Kg7 {[%clk
0:02:11.5]} 17. dxc5+ {[%clk 0:01:58.7]} 17... Kxh6 {[%clk 0:02:11.6]} 18. c6
{[%clk 0:01:58.1]} 18... Bxc6 {[%clk 0:01:46.6]} 19. Rxc6 {[%clk 0:02:00]} 19...
Nc5 {[%clk 0:01:48.1]} 20. Bb1 {[%clk 0:01:43.9]} 20... Qd7 {[%clk 0:01:46.7]}
21. Qxf7 {[%clk 0:00:57.4]} 21... Rxf7 {[%clk 0:01:20.5]} 22. Rxg6+ {[%clk
0:00:56.5]} 22... Kh7 {[%clk 0:01:21]} 23. Rg7+ {[%clk 0:00:49.4]} 23... Kh8
{[%clk 0:01:21.9]} 24. Rh7+ {[%clk 0:00:49.2]} 24... Kg8 {[%clk 0:01:17.8]} 25.
Rh8# {[%clk 0:00:50.2]} 1-0

[Event "*** Titled Tuesday Blitz"]
[Site "Chess.com"]
[Date "2019.01.01"]
[Round "6"]
[White "harperchesstt"]
[Black "Vegan4future"]
[Result "0-1"]
[WhiteElo "2117"]
[BlackElo "2346"]
[TimeControl "180+2"]
[EndTime "14:23:31 PST"]
[Termination "Vegan4future won by resignation"]

1. e4 {[%clk 0:03:01.9]} 1... e5 {[%clk 0:02:59]} 2. Nf3 {[%clk 0:03:02.2]} 2...
d6 {[%clk 0:03:00.6]} 3. d4 {[%clk 0:03:02.3]} 3... exd4 {[%clk 0:03:02.5]} 4.
Nxd4 {[%clk 0:03:02.8]} 4... Nf6 {[%clk 0:03:04.1]} 5. Nc3 {[%clk 0:03:03.9]}
5... Be7 {[%clk 0:03:05.4]} 6. f3 {[%clk 0:02:58.7]} 6... O-O {[%clk 0:03:05]}
7. Be3 {[%clk 0:02:59.8]} 7... d5 {[%clk 0:03:03.6]} 8. e5 {[%clk 0:02:42.8]}
8... c5 {[%clk 0:03:03.4]} 9. exf6 {[%clk 0:02:42.5]} 9... Bxf6 {[%clk
0:03:05.3]} 10. Be2 {[%clk 0:01:46.4]} 10... Re8 {[%clk 0:03:01.8]} 11. Bf2
{[%clk 0:01:33.4]} 11... cxd4 {[%clk 0:02:56.3]} 12. Bxd4 {[%clk 0:01:34.2]}
12... Bxd4 {[%clk 0:02:48.3]} 13. Qxd4 {[%clk 0:01:34.8]} 13... Nc6 {[%clk
0:02:50.2]} 14. Qxd5 {[%clk 0:00:37.7]} 14... Qxd5 {[%clk 0:02:39.2]} 15. Nxd5
{[%clk 0:00:38.4]} 15... Nd4 {[%clk 0:02:41.1]} 16. Kf1 {[%clk 0:00:36.5]} 16...
Rxe2 {[%clk 0:02:13.1]} 17. Rd1 {[%clk 0:00:34]} 17... Rxc2 {[%clk 0:01:58.6]}
18. Rxd4 {[%clk 0:00:26.8]} 18... Be6 {[%clk 0:01:59.2]} 19. Ne3 {[%clk
0:00:22.6]} 19... Rxb2 {[%clk 0:01:59.3]} 20. Rd1 {[%clk 0:00:20]} 20... Rxa2
{[%clk 0:01:58.8]} 21. h3 {[%clk 0:00:21.5]} 21... a5 {[%clk 0:01:58.7]} 22. Kg1
{[%clk 0:00:21.6]} 22... Re2 {[%clk 0:01:58.6]} 23. Ng4 {[%clk 0:00:21.1]} 23...
a4 {[%clk 0:01:58.8]} 24. Kh2 {[%clk 0:00:22.6]} 24... a3 {[%clk 0:01:59.9]} 25.
Ra1 {[%clk 0:00:20.4]} 25... a2 {[%clk 0:02:00.3]} 26. Rhb1 {[%clk 0:00:20.1]}
26... h5 {[%clk 0:02:01]} 0-1

[Event "*** Titled Tuesday Blitz"]
[Site "Chess.com"]
[Date "2019.01.01"]
[Round "6"]
[White "Quiet_Desperation"]
[Black "IMAghasiyevKamal"]
[Result "0-1"]
[WhiteElo "2371"]
[BlackElo "2544"]
[TimeControl "180+2"]
[EndTime "14:23:36 PST"]
[Termination "IMAghasiyevKamal won by resignation"]

1. e4 {[%clk 0:03:01.9]} 1... e5 {[%clk 0:02:56.9]} 2. Nf3 {[%clk 0:03:02.7]}
2... Nc6 {[%clk 0:02:56.9]} 3. Bc4 {[%clk 0:03:03.5]} 3... Bc5 {[%clk
0:02:56.3]} 4. b4 {[%clk 0:03:04.8]} 4... Bxb4 {[%clk 0:02:55.3]} 5. c3 {[%clk
0:03:06.5]} 5... Be7 {[%clk 0:02:51.4]} 6. d4 {[%clk 0:03:07.3]} 6... Na5 {[%clk
0:02:51.8]} 7. Bd3 {[%clk 0:03:05.1]} 7... d5 {[%clk 0:02:39.4]} 8. exd5 {[%clk
0:03:06]} 8... Qxd5 {[%clk 0:02:37.5]} 9. dxe5 {[%clk 0:02:59.7]} 9... Bg4
{[%clk 0:02:31.4]} 10. Qa4+ {[%clk 0:03:00.3]} 10... Bd7 {[%clk 0:02:30.7]} 11.
Qd1 {[%clk 0:03:01]} 11... O-O-O {[%clk 0:02:28.2]} 12. O-O {[%clk 0:02:53.2]}
12... f6 {[%clk 0:02:14.8]} 13. Qe2 {[%clk 0:02:46.9]} 13... Bc6 {[%clk
0:02:10.7]} 14. Rd1 {[%clk 0:02:41.6]} 14... Kb8 {[%clk 0:02:06.5]} 15. Bc2
{[%clk 0:02:38.9]} 15... Qc4 {[%clk 0:02:06.1]} 16. Rxd8+ {[%clk 0:02:39.6]}
16... Bxd8 {[%clk 0:02:06.4]} 17. Bd3 {[%clk 0:02:40.3]} 17... Qd5 {[%clk
0:02:03.6]} 18. c4 {[%clk 0:02:32.9]} 18... Qe6 {[%clk 0:01:57.7]} 19. Bd2
{[%clk 0:02:16.5]} 19... Bxf3 {[%clk 0:01:54.8]} 20. Qxf3 {[%clk 0:02:15.9]}
20... Nxc4 {[%clk 0:01:53.6]} 21. Bc3 {[%clk 0:02:06.1]} 21... Nxe5 {[%clk
0:01:51.9]} 22. Qe2 {[%clk 0:01:58.1]} 22... Ne7 {[%clk 0:01:45.4]} 23. Nd2
{[%clk 0:01:50.3]} 23... Nd5 {[%clk 0:01:44.4]} 24. Bxe5 {[%clk 0:01:30.8]}
24... Qxe5 {[%clk 0:01:42.4]} 25. Qd1 {[%clk 0:01:31.8]} 25... Nc3 {[%clk
0:01:38.1]} 26. Qc1 {[%clk 0:01:27.2]} 26... Be7 {[%clk 0:01:35.5]} 27. Nf3
{[%clk 0:01:27.7]} 27... Qa5 {[%clk 0:01:33.7]} 28. Qe3 {[%clk 0:01:21]} 28...
Bc5 {[%clk 0:01:30]} 29. Qe6 {[%clk 0:01:17.6]} 29... Qb6 {[%clk 0:01:29.6]} 30.
Rc1 {[%clk 0:00:57.8]} 30... Qxe6 {[%clk 0:01:29.8]} 0-1

[Event "*** Titled Tuesday Blitz"]
[Site "Chess.com"]
[Date "2019.01.01"]
[Round "6"]
[White "Generalas"]
[Black "dolynachess"]
[Result "0-1"]
[WhiteElo "2245"]
[BlackElo "2376"]
[TimeControl "180+2"]
[EndTime "14:23:37 PST"]
[Termination "dolynachess won by resignation"]

1. Nf3 {[%clk 0:03:01.9]} 1... Nf6 {[%clk 0:03:00.2]} 2. c4 {[%clk 0:03:02.4]}
2... e6 {[%clk 0:02:56.4]} 3. g3 {[%clk 0:03:02.7]} 3... d5 {[%clk 0:02:57.4]}
4. Bg2 {[%clk 0:03:03.8]} 4... Be7 {[%clk 0:02:57.2]} 5. O-O {[%clk 0:03:04.4]}
5... O-O {[%clk 0:02:58.4]} 6. b3 {[%clk 0:03:05.1]} 6... c6 {[%clk 0:02:52.1]}
7. Bb2 {[%clk 0:03:05.4]} 7... a5 {[%clk 0:02:53.1]} 8. Nc3 {[%clk 0:03:05.1]}
8... Nbd7 {[%clk 0:02:49.1]} 9. d4 {[%clk 0:03:05.3]} 9... b6 {[%clk 0:02:45.6]}
10. Ne5 {[%clk 0:03:01.5]} 10... Bb7 {[%clk 0:02:44.7]} 11. e3 {[%clk
0:03:01.8]} 11... Nxe5 {[%clk 0:02:41.7]} 12. dxe5 {[%clk 0:03:02]} 12... Nd7
{[%clk 0:02:43.3]} 13. cxd5 {[%clk 0:02:53.7]} 13... cxd5 {[%clk 0:02:41.8]} 14.
f4 {[%clk 0:02:54.3]} 14... Rc8 {[%clk 0:02:27.7]} 15. Qg4 {[%clk 0:02:48.3]}
15... Ba6 {[%clk 0:02:13.8]} 16. Rfd1 {[%clk 0:02:47.1]} 16... Bc5 {[%clk
0:02:06.2]} 17. Kh1 {[%clk 0:02:32.7]} 17... Bxe3 {[%clk 0:02:01.9]} 18. Nxd5
{[%clk 0:01:49.6]} 18... exd5 {[%clk 0:01:55.2]} 19. Rxd5 {[%clk 0:01:49.6]}
19... Rc2 {[%clk 0:01:45.2]} 20. Rxd7 {[%clk 0:01:46.3]} 20... Bc8 {[%clk
0:01:41.7]} 21. e6 {[%clk 0:01:43.5]} 21... Rxb2 {[%clk 0:01:28.7]} 22. exf7+
{[%clk 0:01:34.8]} 22... Kh8 {[%clk 0:01:26.9]} 23. Rxd8 {[%clk 0:01:35.1]}
23... Rxd8 {[%clk 0:01:28.8]} 24. Rd1 {[%clk 0:01:31.1]} 24... Rb1 {[%clk
0:01:16.6]} 25. Bf1 {[%clk 0:01:21.3]} 25... Bb7+ {[%clk 0:01:03.8]} 26. Bg2
{[%clk 0:01:01.7]} 26... Rbxd1+ {[%clk 0:01:04.2]} 0-1

[Event "*** Titled Tuesday Blitz"]
[Site "Chess.com"]
[Date "2019.01.01"]
[Round "6"]
[White "CaptainCasanova"]
[Black "StephenDedalus83"]
[Result "1-0"]
[WhiteElo "2749"]
[BlackElo "2717"]
[TimeControl "180+2"]
[EndTime "14:23:46 PST"]
[Termination "CaptainCasanova won by resignation"]

1. e4 {[%clk 0:02:59.2]} 1... c5 {[%clk 0:03:00.4]} 2. Nf3 {[%clk 0:02:58.1]}
2... d6 {[%clk 0:03:01.4]} 3. d4 {[%clk 0:02:59]} 3... cxd4 {[%clk 0:03:03.3]}
4. Nxd4 {[%clk 0:03:00.1]} 4... Nf6 {[%clk 0:03:04.2]} 5. Nc3 {[%clk 0:03:01]}
5... g6 {[%clk 0:03:05.7]} 6. f3 {[%clk 0:03:00.9]} 6... Qb6 {[%clk 0:03:04.9]}
7. Be3 {[%clk 0:02:33.2]} 7... Qxb2 {[%clk 0:03:01.5]} 8. Ndb5 {[%clk
0:02:29.9]} 8... Qb4 {[%clk 0:03:00.1]} 9. Nc7+ {[%clk 0:02:10.5]} 9... Kd8
{[%clk 0:03:00.3]} 10. Bd2 {[%clk 0:02:11.1]} 10... Kxc7 {[%clk 0:02:38.5]} 11.
Nb5+ {[%clk 0:02:07.2]} 11... Qxb5 {[%clk 0:02:39.5]} 12. Bxb5 {[%clk
0:02:03.6]} 12... Bg7 {[%clk 0:02:40.6]} 13. O-O {[%clk 0:01:57.8]} 13... Nfd7
{[%clk 0:02:38]} 14. Rb1 {[%clk 0:01:58]} 14... Nc5 {[%clk 0:02:38.6]} 15. Kh1
{[%clk 0:01:54.1]} 15... b6 {[%clk 0:02:39.4]} 16. Bg5 {[%clk 0:01:52]} 16... f6
{[%clk 0:02:37.9]} 17. Be3 {[%clk 0:01:51.5]} 17... Rd8 {[%clk 0:02:35.8]} 18.
Qd5 {[%clk 0:01:50.4]} 18... Bb7 {[%clk 0:02:27.7]} 19. Qf7 {[%clk 0:01:51.3]}
19... Bf8 {[%clk 0:02:28.8]} 20. Qxh7 {[%clk 0:01:51.1]} 20... g5 {[%clk
0:02:29.8]} 21. Bxc5 {[%clk 0:01:39.9]} 21... bxc5 {[%clk 0:02:30]} 22. Bc4
{[%clk 0:01:37.5]} 22... Nc6 {[%clk 0:02:26.2]} 23. Bd5 {[%clk 0:01:30.5]} 23...
Rab8 {[%clk 0:02:27]} 24. a3 {[%clk 0:01:18.9]} 24... Ba6 {[%clk 0:02:26]} 25.
Rfd1 {[%clk 0:01:19.9]} 25... Ne5 {[%clk 0:02:20.8]} 26. h4 {[%clk 0:01:18.7]}
26... gxh4 {[%clk 0:02:20.7]} 27. Qxh4 {[%clk 0:01:20.6]} 27... Bg7 {[%clk
0:02:20.9]} 28. Qe1 {[%clk 0:01:15.6]} 28... Nc6 {[%clk 0:02:04]} 29. Bxc6
{[%clk 0:01:13.7]} 29... Kxc6 {[%clk 0:02:04.7]} 30. Qa5 {[%clk 0:01:15.2]}
30... Bc4 {[%clk 0:02:03.6]} 31. Qxa7 {[%clk 0:01:13.6]} 31... Rh8+ {[%clk
0:01:51.9]} 32. Kg1 {[%clk 0:01:13.7]} 32... Bh6 {[%clk 0:01:52.3]} 33. Qa4+
{[%clk 0:00:46.2]} 33... Bb5 {[%clk 0:01:52.7]} 34. Rxb5 {[%clk 0:00:41.9]}
34... Rxb5 {[%clk 0:01:53.2]} 35. c4 {[%clk 0:00:42.3]} 1-0